Cogmind - Beta 13 *** ADVENTURER MODE // 2024.04.06 @ 02:11:33 Player: Fettuccine Result: Destroyed by G-47 Trooper with Particle Gun Performance ------------- Evolutions (2) 1000 Regions Visited (3) 600 Robots Destroyed (99) 495 Value Destroyed (2633) 2633 Prototype IDs (3) 60 Alien Tech Used (0) 0 Bonus (0) 0 TOTAL SCORE: 4788 Bonus ------- None Cogmind --------- Core Integrity 0/550 Matter 32/300 Energy 265/265 System Corruption 0% Temperature Cool (9) Movement Core (550) Ox10 Location -8/Materials Parts ------- > --- POWER (2) -------- Improved Ion Engine > --- PROPULSION (3) --- (None) > --- UTILITY (4) ------ Large Storage Unit > --- WEAPON (2) ------- Assault Cannon > --- INVENTORY (15) --- Cesium-ion Thruster Cesium-ion Thruster Cesium-ion Thruster High-capacity Battery (250) Hardened Light Armor Plating Hardened Light Armor Plating Ion Cannon Ion Cannon Peak State ------------ > --- POWER ------------ Ion Engine Light Angular Momentum Engine > --- PROPULSION ------- Titanium Leg Titanium Leg Titanium Leg > --- UTILITY ---------- Large Storage Unit Advanced Weight Redist. System Light Armor Plating Light Armor Plating > --- WEAPON ----------- Ion Cannon Ion Cannon > --- INVENTORY -------- Improved Ion Engine Titanium Leg Cooling System High-capacity Battery Shield Generator Flak Cannon Flak Cannon Rocket Launcher Mini Grenade Launcher Mining Laser [Rating: 29] Favorites ----------- Power Light Ion Engine Engine Light Ion Engine Power Core Nuclear Core Propulsion Titanium Leg Treads Light Treads Leg Titanium Leg Flight Unit Cesium-ion Thruster Utility Medium Storage Unit Device Shield Generator Storage Medium Storage Unit Processor Targeting Computer Hackware System Shield Protection Hardened Light Armor Plating Weapon Ion Cannon Energy Gun Particle Gun Energy Cannon Ion Cannon Ballistic Gun Light Assault Rifle Ballistic Cannon Flak Cannon Launcher Grenade Launcher Special Weapon Mining Laser Slashing Weapon Mining Claw Build | -11 -10 -9 -8 ------- Run | Yrd Mat Mat Mat Slots Evolved 4 | . . 2 2 Power 1 | . . 1 . Propulsion 1 | . . . 1 Utility 2 | . . 1 1 Weapon . | . . . . Parts Attached 119 | 7 24 33 55 Power 21 | 1 3 6 11 Engine 20 | 1 3 6 10 Core 1 | . . . 1 Reactor . | . . . . Propulsion 27 | 2 10 2 13 Treads 8 | . . . 8 Leg 14 | 2 8 2 2 Wheel . | . . . . Hover . | . . . . Flight 5 | . 2 . 3 Utility 36 | 1 4 14 17 Device 13 | 1 . 5 7 Storage 10 | . 2 5 3 Processor 2 | . 1 1 . Hackware 1 | . . . 1 Protection 10 | . 1 3 6 Artifact . | . . . . Weapon 35 | 3 7 11 14 Energy Gun 6 | 2 3 . 1 Energy Cannon 8 | . . 6 2 Ballistic Gun 1 | 1 . . . Ballistic Cannon 5 | . . 1 4 Launcher 12 | . 3 2 7 Special Weapon 2 | . . 2 . Impact Weapon . | . . . . Slashing Weapon 1 | . 1 . . Piercing Weapon . | . . . . Special Melee Weapon . | . . . . Unidentified Prototypes . | . . . . Parts Lost 14 | . 1 . 13 Power 3 | . . . 3 Propulsion 2 | . . . 2 Utility 5 | . . . 5 Weapon 4 | . 1 . 3 Highest Loss Streak 3 | . 1 . 3 To Critical Strikes . | . . . . Average Slot Usage (%) 95 | . 97 99 86 Engine 17 | . 14 21 15 Treads 3 | . . . 12 Leg 19 | . 27 22 8 Device 7 | . . 12 7 Storage 11 | . 13 11 9 Processor 4 | . 9 5 . Protection 6 | . 3 3 14 Energy Gun 4 | . 13 . 1 Energy Cannon 9 | . . 19 2 Ballistic Cannon 3 | . . . 12 Launcher 4 | . 11 2 1 Naked Turns . | . . . . Heaviest Build 57 | 7 22 56 57 Greatest Support 72 | 20 26 40 72 Greatest Overweight (x) 17 | . 4 1 17 Average Overweight (x) . | . . . . Largest Inventory Capacity 25 | 5 25 25 15 Average Capacity 11 | 5 9 10 14 Most Carried 15 | 5 10 10 15 Average Carried 8 | 3 7 9 10 Final Capacity 15 | 5 10 15 15 Final Carried 10 | 5 9 10 8 Class Distribution -------------------- 94% | Mutant 4% | Scavenger-Mutant Dominant Class ---------------- Mutant | -10/Materials Mutant | -9/Materials Mutant | -8/Materials Resources | -11 -10 -9 -8 ----------- Run | Yrd Mat Mat Mat Matter Collected 2026 | 273 347 443 963 Remotely . | . . . . Salvage Created 2459 | 33 485 914 1027 Parts 194 | 3 49 65 77 Haulers Intercepted 6 | . 2 2 2 Recyclers Shooed 4 | . 1 . 3 Parts Field Recycled . | . . . . Retrieved Matter . | . . . . Parts Self-Destructed . | . . . . Prevented . | . . . . Kills | -11 -10 -9 -8 ------- Run | Yrd Mat Mat Mat Combat Hostiles Destroyed 64 | 1 12 18 33 Melee 2 | . . . 2 Guns 6 | 1 5 . . Cannons 31 | . . 13 18 AOE 25 | . 7 5 13 Classes Destroyed 11 | 1 6 3 1 Worker 5 | . . . 5 Builder 6 | . 2 1 3 Tunneler 3 | . 2 . 1 Hauler 6 | . 2 2 2 Recycler 2 | . 1 . 1 Operator 3 | . . 2 1 Watcher 10 | . 3 4 3 Swarmer 12 | . 6 . 6 Grunt 40 | 1 6 13 20 Brawler 2 | . . 1 1 Sentry 10 | . . 4 6 Best Kill Streak 8 | 1 6 5 8 Combat Bots Only 6 | 1 3 4 6 Max Kills in Single Turn 4 | 1 4 2 3 Gunslinging . | . . . . Exploded 3 | . 2 2 3 Melee 1 | . . . 1 Uniques/NPCs Destroyed . | . . . . Combat | -11 -10 -9 -8 -------- Run | Yrd Mat Mat Mat Hostile Shots Fired 447 | 3 20 83 341 Missed 129 | . 5 24 100 Damage Taken 3647 | 25 472 495 2655 Core 744 | 17 91 78 558 Absorbed by Shields 439 | . . 103 336 Redirected to Shielding 2 | . . 2 . Ignored by Resistances 1060 | 7 63 179 811 Regen/Repaired (Parts) 334 | . 14 78 242 Core Remaining (%) 76 | 93 56 80 . Volleys Fired 187 | 3 42 72 70 Largest 2 | 2 2 2 2 Hottest 130 | 60 130 120 120 Shots Fired 285 | 6 43 101 135 Gun 49 | 6 34 2 7 Cannon 191 | . . 84 107 Launcher 43 | . 9 13 21 Special 2 | . . 2 . Kinetic 91 | 3 7 . 81 Thermal 144 | 3 27 88 26 Explosive 43 | . 9 13 21 Electromagnetic 7 | . . . 7 Robot Hit Streak 15 | 1 9 11 15 Robot Miss Streak 10 | 1 2 2 10 Penetration Max . | . . . . Secondary Targets . | . . . . Shots Hit Robots 187 | 2 28 66 91 Core Hits 189 | 2 27 32 128 Critical Kills . | . . . . Critical Parts Destroyed . | . . . . Critical Strikes 1 | . 1 . . Burn 1 | . 1 . . Melee Attacks 4 | . 4 . . Impact . | . . . . Slashing 4 | . 4 . . Piercing . | . . . . Sneak Attacks . | . . . . Combat Hostiles . | . . . . Follow-up Attacks . | . . . . Damage Inflicted 6988 | 20 1138 1746 4084 Guns 494 | 20 339 34 101 Cannons 2966 | . . 1212 1754 Explosions 3454 | . 796 500 2158 Melee . | . . . . Ramming 74 | . 3 . 71 Kinetic 1402 | . 41 . 1361 Thermal 1957 | 20 298 1246 393 Explosive 3454 | . 796 500 2158 Electromagnetic 101 | . . . 101 Impact . | . . . . Slashing . | . . . . Piercing . | . . . . Highest Corruption 1 | . 1 . . Average Corruption 1 | . 1 . . Corruption Purged . | . . . . Corruption Blocked . | . . . . Effects 10 | . 10 . . Message Errors 3 | . 3 . . Matter Fused 4 | . 4 . . Heat Flow Errors 1 | . 1 . . Energy Discharges 1 | . 1 . . Data Loss (major) 1 | . 1 . . Overload Shots . | . . . . Overflow Damage 206 | . 60 48 98 Projectiles 48 | . . 48 . Explosions 158 | . 60 . 98 Melee . | . . . . Knockbacks 28 | . . . 28 Impact 1 | . . . 1 Kinetic 25 | . . . 25 Secondary 2 | . . . 2 Self-Inflicted Damage 111 | . 41 24 46 Shots 8 | . 2 1 5 Rammed 15 | . . . 15 Targets Rammed 18 | . 2 . 16 Kicked 2 | . 2 . . Crushed 1 | . . . 1 Highest Temperature 620 | 32 178 505 620 Average Temperature 140 | 16 61 151 150 Received Heat Transfer 2135 | 18 36 312 1769 Effects 50 | . . 18 32 Shutdowns 17 | . . 7 10 Energy Bleed 5 | . . 3 2 Interference 5 | . . 5 . Matter Decay 3 | . . . 3 Short Circuit 2 | . . . 2 Damage (minor) 2 | . . . 2 Damage (major) 13 | . . 3 10 Damage (core) 3 | . . . 3 Siege Activations . | . . . . Robots Corrupted . | . . . . Combat Hostiles . | . . . . Parts Fried . | . . . . Impact Corruptions . | . . . . Robots Melted 1 | . 1 . . Combat Hostiles . | . . . . Parts Melted 2 | . . 2 . Heat Transferred 3491 | 50 777 2035 629 Parts Sabotaged . | . . . . Parts Stolen . | . . . . Parts Stripped . | . . . . Power Chain Reactions . | . . . . Alert | -11 -10 -9 -8 ------- Run | Yrd Mat Mat Mat Peak Influence 383 | 20 309 263 383 Initial 11 | . 11 . 1 Average 77 | 12 71 52 125 Maximum Alert Level 1 | . 1 1 1 Low Security (%) 86 | 100 90 90 74 Level 1 13 | . 9 9 25 Level 2 . | . . . . Level 3 . | . . . . Level 4 . | . . . . Level 5 . | . . . . High Security . | . . . . Max Security . | . . . . Squads Dispatched 18 | . 4 7 7 Investigation 14 | . 4 7 3 Extermination . | . . . . Reinforcement 4 | . . . 4 Assault . | . . . . Garrison . | . . . . Intercept . | . . . . Searches Triggered . | . . . . Construction Impeded 1 | . . . 1 Haulers Reinforced . | . . . . Active Scanning Responses . | . . . . Cargo Convoy Interrupts . | . . . . Stealth | -11 -10 -9 -8 --------- Run | Yrd Mat Mat Mat Distress Signals 9 | . 3 2 4 Communications Jammed . | . . . . Distress Signals . | . . . . Times Spotted 96 | 1 17 27 51 Peak Tracking Total 6 | 1 5 4 6 Tactical Retreats 3 | . 1 2 . Traps | -11 -10 -9 -8 ------- Run | Yrd Mat Mat Mat Traps Triggered 5 | . 3 1 1 Indirectly . | . . . . Trap Hack Attempts . | . . . . Triggered . | . . . . Disarmed . | . . . . Reprogrammed 5 | . 5 . . Reused 1 | . 1 . . Traps Extracted . | . . . . Installed . | . . . . Triggered 1 | . 1 . . Machines | -11 -10 -9 -8 ---------- Run | Yrd Mat Mat Mat Machines Disabled 4 | . 1 3 . Max in Single Turn 1 | . 1 1 . Machines Repaired . | . . . . Machines Dismantled . | . . . . Machines Sabotaged . | . . . . Overloaded Fab Kills . | . . . . Hacking | -11 -10 -9 -8 --------- Run | Yrd Mat Mat Mat Machines Accessed 26 | . 9 13 4 Terminals 16 | . 7 8 1 Fabricators . | . . . . Repair Stations 5 | . 1 2 2 Recycling Units 2 | . 1 1 . Scanalyzers 3 | . . 2 1 Garrison Access . | . . . . Total Hacks 115 | . 37 52 26 Successful 93 | . 24 46 23 Failed 21 | . 13 5 3 Catastrophic 1 | . . 1 . Database Lockouts 1 | . . 1 . Manual 1 | . 1 . . Terminals 66 | . 29 32 5 Fabricators . | . . . . Repair Stations 25 | . 4 7 14 Recycling Units 7 | . 4 3 . Scanalyzers 17 | . . 10 7 Garrison Access . | . . . . Terminal Hacks 48 | . 18 26 4 Record 25 | . 6 19 . Robot Analysis 1 | . 1 . . Prototype ID Bank 2 | . 1 1 . Emergency Access Points 2 | . . 1 1 Alert Level 5 | . 2 2 1 Locate Traps 1 | . 1 . . Reprogram Traps 1 | . 1 . . Dispatch Records 1 | . 1 . . Maintenance Status 2 | . 1 . 1 Transport Status 1 | . 1 . . Hauler Manifests 1 | . 1 . . Zone Layout 5 | . 1 3 1 Patrol Navigation 1 | . 1 . . Fabricator Hacks . | . . . . Repair Station Hacks 22 | . 3 7 12 Scan Component 14 | . 2 4 8 Repair 8 | . 1 3 4 Recycling Unit Hacks 6 | . 3 3 . Recycle Component 2 | . 1 1 . Process 2 | . 1 1 . Retrieve Matter 1 | . . 1 . Retrieve Components 1 | . 1 . . Scanalyzer 17 | . . 10 7 Insert Component 6 | . . 3 3 Analyze 11 | . . 7 4 Garrison Access Hacks . | . . . . Unauthorized Hacks . | . . . . Terminals . | . . . . Fabricators . | . . . . Repair Stations . | . . . . Recycling Units . | . . . . Scanalyzers . | . . . . Garrison Access . | . . . . Data Cores Recovered 1 | . . 1 . Used . | . . . . Hacking Detections 23 | . 8 12 3 Full Trace Events 17 | . 7 8 2 Feedback Events . | . . . . Feedback Blocked . | . . . . Robot Schematics Acquired . | . . . . Robots Built . | . . . . Authchips . | . . . . Time . | . . . . Total Robot Build Rating . | . . . . Part Schematics Acquired 6 | . . 3 3 Parts Built . | . . . . Authchips . | . . . . Time . | . . . . Total Part Build Rating . | . . . . Parts Repaired 8 | . 1 3 4 Time 232 | . 26 84 122 Parts Recycled 2 | . 1 1 . Recycled Matter 326 | . 135 191 . Retrieved Matter 239 | . . 239 . Retrieved Components 1 | . 1 . . Parts Scanalyzed 6 | . . 3 3 Part Schematics Acquired 6 | . . 3 3 Parts Damaged . | . . . . Bothacking | -11 -10 -9 -8 ------------ Run | Yrd Mat Mat Mat Used RIF Installer . | . . . . Robots Hacked . | . . . . Non-combat . | . . . . Combat . | . . . . Robot Hacks Applied . | . . . . Relay Couplers Released . | . . . . Fabnet Peak Effective % . | . . . . Robots Rewired . | . . . . Allies Hacked . | . . . . Hacks Repelled . | . . . . Allies | -11 -10 -9 -8 -------- Run | Yrd Mat Mat Mat Total Allies . | . . . . Largest Group . | . . . . Highest-Rated Group . | . . . . Highest-Rated Ally . | . . . . Total Orders . | . . . . Ally Attacks . | . . . . Total Damage . | . . . . Kills . | . . . . Allies Corrupted . | . . . . Allies Melted . | . . . . Intel | -11 -10 -9 -8 ------- Run | Yrd Mat Mat Mat Robot Analysis Total 1 | . 1 . . Derelict Logs Recovered . | . . . . Drone Launches . | . . . . Drone Recoveries . | . . . . Exploration | -11 -10 -9 -8 ------------- Run | Yrd Mat Mat Mat Turns Passed 8291 | 297 2217 3354 2423 Spaces Moved 5020 | 241 1700 1948 1131 Core 43 | 27 . . 16 Treads 660 | . . . 660 Legs 4303 | 214 1699 1948 442 Wheels . | . . . . Hover . | . . . . Flight 14 | . 1 . 13 Fastest Speed 50 | 50 120 120 109 Average Speed 148 | 112 120 158 182 Slowest Speed 900 | 120 370 200 900 Overloaded Moves . | . . . . Propulsion Burnouts . | . . . . Robots Hopped . | . . . . Cave-ins Triggered 1 | . 1 . . Exploration Rate (%) 58 | 11 90 88 44 Regions Visited 3 Branch Regions . Pre-discovered Areas . | . . . . Known Exits Taken . | . . . . Unknown Exits Taken 3 | 1 1 1 . Scrap Searched . | . . . . Spaces Dug 23 | . 21 2 . Terrain Destroyed 253 | . 52 67 134 Melee 4 | . 4 . . Projectile 13 | . . 6 7 AOE 236 | . 48 61 127 Terrain Rammed . | . . . . Walls Destroyed . | . . . . Machines Disabled . | . . . . Actions | -11 -10 -9 -8 --------- Run | Yrd Mat Mat Mat Total 5547 | 262 1828 2109 1348 Wait 3 | 1 2 . . Move 5017 | 240 1699 1947 1131 Hop . | . . . . Pick Up 123 | 11 31 32 49 Fast Attach . | . . . . Attach 43 | 6 9 8 20 Detach 4 | . 2 1 1 Swap 76 | 1 15 25 35 Drop 72 | . 22 24 26 Fire 187 | 3 42 72 70 Melee 4 | . 4 . . Ram . | . . . . Kick 2 | . 2 . . Crush 16 | . . . 16 Escape Stasis . | . . . . Rewire . | . . . . Trap . | . . . . Miscellaneous . | . . . . Route ------- -11/Scrapyard -10/Materials (discovered 5 exits: *Mat x3 / [*Min] / [*Sub]) -9/Materials (discovered 5 exits: *Mat x3 / [*Min x2]) -8/Materials (discovered 2 exits: [*Fac] / [*Sto]) History --------- Turn | Location | Event 2 | -11/Scrapyard | Met Revision 17 98 | -11/Scrapyard | Discovered new exit (range 8) 298 | -11/Scrapyard | Entered Materials 328 | -10/Materials | Build established: Mutant 637 | -10/Materials | Discovered new exit (range 16) 1028 | -10/Materials | Discovered new exit (range 14) 1136 | -10/Materials | Crushed by falling debris 1319 | -10/Materials | Discovered new exit (range 15) 1504 | -10/Materials | Discovered new exit (range 15) 1562 | -10/Materials | Repaired Grenade Launcher? 1993 | -10/Materials | Discovered new exit (range 16) 2515 | -10/Materials | Entered another Materials area 2515 | -9/Materials | Evolved 2 slots: Power x1, Utility x1 2780 | -9/Materials | Discovered new exit (range 12) 3113 | -9/Materials | Repaired Grenade Launcher 3838 | -9/Materials | Discovered new exit (range 13) 3944 | -9/Materials | Repaired Shield Generator 3984 | -9/Materials | Repaired Ion Engine 4184 | -9/Materials | Discovered new exit (range 15) 4308 | -9/Materials | Discovered new exit (range 6) 4840 | -9/Materials | Central database locked down 5321 | -9/Materials | Discovered new exit (range 14) 5869 | -9/Materials | Entered another Materials area 5869 | -8/Materials | Evolved 2 slots: Propulsion x1, Utility x1 6603 | -8/Materials | Discovered new exit (range 5) 6636 | -8/Materials | Core integrity fell below 50% 7065 | -8/Materials | Repaired Imp. Ion Engine 7105 | -8/Materials | Repaired Lgt. Ion Engine 7156 | -8/Materials | Repaired Adv. Weight Redist. System 7188 | -8/Materials | Repaired Lrg. Storage Unit 7264 | -8/Materials | Discovered new exit (range 7) 7598 | -8/Materials | Build established: Scavenger-Mutant 7895 | -8/Materials | Lost 3 parts (1u2w) 7999 | -8/Materials | Build established: Mutant 8093 | -8/Materials | Core integrity fell below 20% 8292 | -8/Materials | Destroyed by G-47 Trooper with Particle Gun Last Messages --------------- K-01 Serf collects debris. Critical hit (Burn: +37). K-01 Serf cleans the Fusion Modulator. Critical hit (Burn: +37). U-05 Engineer destroyed. R-06 Scavenger collects Welding Torch. R-06 Scavenger collects Terrain Scanner. Lgt. Treads destroyed. Imp. Treads destroyed. Shock Rifle destroyed. Critical hit (Burn: +37). Hrd. Light Armor Plating destroyed. Imp. Ion Engine destroyed. Hrd. Light Armor Plating destroyed. [Achievement: First Step to Greatness] Important note for Steam players: Cogmind player global achievement rates displayed by Steam are all significantly underreported, in some cases by a huge margin, due to how they are calculated by Valve. Map ----- +----------------------------------------------------+ | ????# # # """" # """ # # " | | ????# """ # # """" # """ # ###+#### #### | | ????# """ # # """"?# ## ## ## #??? | | ????#[ """ # + # ## ##""" ## #??? | | ????# # #?"""" # ## ##"R ## #??? | | ????# "" / #?"""" # ## ##""" ## ###? | | ????# "Y #% #??""" ######## ## ## # ## | | ????# "" # #?????????????# ##[ ## #[ | | ????# # #?????????????# ## ## # ! | | ????########## #?????????????# ######### #] | | ?????????????# #?????????????# ## # # " | | ?????????????# #?????????????# ## "" ! # # " | | ?????????????# #?????????????# ## "Y + + " | | ???########### #?????????????# ## "" # #### | | ???# # #?????????????# ## # ### | | ???# # #####????????## ## ! # | | ???# # # !#????????# #####+## | | ???# """ """ + # ! #????????# !#???# ####### | | ???# """ """ # # #????????# #??##+######## | | ???# """ """ # # #????????# #??# ! # | | ???# # #[ #????????# #??# + | | ???# # # #????????### ###??# # | | #########/#### # ########???# #????# # | | # #########+### #???# #????# """ """ # | | """"" # g ##### #????# """ """ # | | """"" + @ k #????# """ """ # | | """"" # #######????# # | | """"" ! ####+########## #??????????########### | | """"" # #??#####+#####??????????????????? | | """"" # """ #??# #??????????????????? | | """"" # """ #??# #??????????????????? | | # """ #??# """"""" #??????????????????? | | ######### = #??# """"""" #??????????????????? | | ????????# """ #??# """"""" #??????????????????? | | ????????# """ #??# """"""" #??????????????????? | | ????????# """ #??# """"""" #??????????????????? | | ????????# !#??????? ???????????????????????? | | ????????##########???????????????????????????????? | | | | | | | | | | | | | | | | | | | | | | | | | +----------------------------------------------------+ Best States ------------- Heat Dissipation 53 Energy Generation 23 Energy Capacity 540 Matter Stores 300 Matter Capacity 300 Sight Range 16 Terrain Scan Density 10 Additional Mass Support 9 Armor Coverage 300 Resistance: KI 20 Resistance: TH 30 Resistance: EX 20 Resistance: EM 20 Resistance: I 20 Resistance: S 20 Resistance: P 20 Power Shielding 33 Evasion (%) 55 Targeting Accuracy 5 Recoil Reduction 3 Offensive Hacking 10 Defensive Hacking 10 Item Schematics ----------------- Mni. Grenade Launcher | -9/Materials | Scanalyzed Rocket Launcher | -9/Materials | Scanalyzed Titanium Leg | -9/Materials | Scanalyzed Lgt. Ion Engine | -8/Materials | Scanalyzed Ion Cannon | -8/Materials | Scanalyzed Hcp. Battery | -8/Materials | Scanalyzed Robot Schematics ------------------ None Fabricated ------------ Nothing Alien Tech Used ----------------- None Achievements -------------- Crack Shot First Step to Greatness Fist Fight It's Just You Librarian Loot Pinata More Dakka Please One Hack Too Far Oops Part-time Excavator Part-time Mechanic Remodeling Storm Trooper Uninvited Guest Unlikely Earthworm Challenges ------------ None Game ------ Seed ScrapSlugPod Manual? 0 Play Time 01:46:51 Cumulative 1.7 hours Start 2024.04.06 @ 00:20:18 End 2024.04.06 @ 02:11:33 Sessions 1 Manual Loads 0 Difficulty Adventurer Special Mode None Game No. 1 Rogue 0 Adventurer 1 Explorer 0 Win Type - Total 0 Types 0/0/0/0/0/0/0/0/0 Lore% 1 Gallery% 4 Achievement% 5 Wizard Run 0 Options --------- Layout 1 ASCII 0 Keyboard 0 Movement Mouse Keybinds 0 Fullscreen 1 Font 24/Smallcaps Map View 50x35 Zoom Use 0% Tactical HUD 0 Map Filters NONE Filters NONE Steam 1 RUN: a0639197-3b82-4633-a99c-2bca0d285bf0